[Event "Late-Titled-Tuesday-Blitz-May-14-2024"]
[Site "Chess.com"]
[Date "2024.05.14"]
[Round "1"]
[White "doublesik"]
[Black "Rud_Makarian"]
[Result "0-1"]
[WhiteElo "2525"]
[BlackElo "2954"]
[TimeControl "180+1"]
[EndTime "14:07:16 PDT"]
[Termination "Rud_Makarian won by resignation"]

1. d4 {[%clk 0:03:00.9]} 1... Nf6 {[%clk 0:03:00.1]} 2. c4 {[%clk 0:03:00.9]}
2... e6 {[%clk 0:03:00.4]} 3. Nf3 {[%clk 0:03:01.2]} 3... d5 {[%clk 0:03:01.3]}
4. Nc3 {[%clk 0:03:01.3]} 4... Be7 {[%clk 0:03:00.4]} 5. cxd5 {[%clk 0:03:00.4]}
5... exd5 {[%clk 0:03:00.6]} 6. Qc2 {[%clk 0:03:00.9]} 6... O-O {[%clk 0:03:01]}
7. Bg5 {[%clk 0:03:01.4]} 7... c6 {[%clk 0:03:01.2]} 8. e3 {[%clk 0:03:02.1]}
8... h6 {[%clk 0:03:01.7]} 9. Bh4 {[%clk 0:03:02.2]} 9... Re8 {[%clk 0:03:02]}
10. Bd3 {[%clk 0:03:02.7]} 10... Nbd7 {[%clk 0:03:02.1]} 11. h3 {[%clk
0:03:01.6]} 11... Ne4 {[%clk 0:03:01.2]} 12. Bxe7 {[%clk 0:02:59.5]} 12... Qxe7
{[%clk 0:03:02.1]} 13. O-O {[%clk 0:02:57.4]} 13... Ndf6 {[%clk 0:02:58.7]} 14.
Ne5 {[%clk 0:02:52]} 14... Bf5 {[%clk 0:02:58.3]} 15. a3 {[%clk 0:02:45.5]}
15... a6 {[%clk 0:02:51.7]} 16. b4 {[%clk 0:02:43.6]} 16... Nxc3 {[%clk
0:02:46.5]} 17. Qxc3 {[%clk 0:02:36.3]} 17... Bxd3 {[%clk 0:02:44.5]} 18. Nxd3
{[%clk 0:02:30.4]} 18... Ne4 {[%clk 0:02:44.5]} 19. Qc2 {[%clk 0:02:30.3]} 19...
Nd6 {[%clk 0:02:44.4]} 20. a4 {[%clk 0:02:26.9]} 20... g6 {[%clk 0:02:44.2]} 21.
Rab1 {[%clk 0:02:14.8]} 21... h5 {[%clk 0:02:41.7]} 22. Ne5 {[%clk 0:02:05.3]}
22... Kg7 {[%clk 0:02:38.7]} 23. Rfc1 {[%clk 0:01:51.5]} 23... Qe6 {[%clk
0:02:27.3]} 24. Qd3 {[%clk 0:01:17.9]} 24... Re7 {[%clk 0:02:22.1]} 25. Rc2
{[%clk 0:01:00.2]} 25... Qf6 {[%clk 0:02:18.6]} 26. Qf1 {[%clk 0:00:53.3]} 26...
Rg8 {[%clk 0:02:15.7]} 27. Nd3 {[%clk 0:00:47.1]} 27... Kh8 {[%clk 0:02:13.2]}
28. Nc5 {[%clk 0:00:45.3]} 28... g5 {[%clk 0:02:11]} 29. g4 {[%clk 0:00:27.7]}
29... hxg4 {[%clk 0:02:06.9]} 30. hxg4 {[%clk 0:00:27.9]} 30... Kg7 {[%clk
0:02:07.5]} 31. Qg2 {[%clk 0:00:21.7]} 31... Qg6 {[%clk 0:02:05.7]} 32. Rbc1
{[%clk 0:00:18.2]} 32... Rh8 {[%clk 0:02:06]} 33. Re2 {[%clk 0:00:11.1]} 33...
Rh4 {[%clk 0:02:00.1]} 34. f3 {[%clk 0:00:11.3]} 34... Re8 {[%clk 0:02:00.6]}
35. Kf2 {[%clk 0:00:11.1]} 35... Reh8 {[%clk 0:02:00.6]} 36. Ke1 {[%clk
0:00:07.1]} 36... Rh1+ {[%clk 0:01:37.8]} 37. Kd2 {[%clk 0:00:06.6]} 37... Nc4+
{[%clk 0:01:38.2]} 38. Rxc4 {[%clk 0:00:04.5]} 38... dxc4 {[%clk 0:01:39.1]} 39.
Qg3 {[%clk 0:00:01.4]} 39... Re8 {[%clk 0:00:57.1]} 40. e4 {[%clk 0:00:00.9]}
40... b6 {[%clk 0:00:57.8]} 41. Ke3 {[%clk 0:00:01.5]} 41... bxc5 {[%clk
0:00:57.2]} 42. bxc5 {[%clk 0:00:02.4]} 42... Rd1 {[%clk 0:00:55.4]} 43. Qg2
{[%clk 0:00:02.8]} 43... Rd3+ {[%clk 0:00:55.6]} 44. Kf2 {[%clk 0:00:03.2]}
44... Rxd4 {[%clk 0:00:56.2]} 45. Qg3 {[%clk 0:00:02.6]} 45... Qf6 {[%clk
0:00:55.2]} 46. Qc7 {[%clk 0:00:03.2]} 46... Rd3 {[%clk 0:00:54.2]} 47. Qg3
{[%clk 0:00:03]} 47... c3 {[%clk 0:00:48.3]} 48. Kg2 {[%clk 0:00:03.5]} 48...
Rd2 {[%clk 0:00:47.8]} 49. e5 {[%clk 0:00:04.1]} 49... Rxe2+ {[%clk 0:00:37.8]}
0-1

[Event "Late-Titled-Tuesday-Blitz-May-14-2024"]
[Site "Chess.com"]
[Date "2024.05.14"]
[Round "1"]
[White "Flaccidmoves"]
[Black "GMTalks_Youtube"]
[Result "0-1"]
[WhiteElo "2438"]
[BlackElo "2774"]
[TimeControl "180+1"]
[EndTime "14:07:16 PDT"]
[Termination "GMTalks_Youtube won by resignation"]

1. Nf3 {[%clk 0:03:00.9]} 1... d5 {[%clk 0:02:59.1]} 2. e3 {[%clk 0:03:00.5]}
2... Nf6 {[%clk 0:02:58.5]} 3. c4 {[%clk 0:02:59.5]} 3... e6 {[%clk 0:02:58.8]}
4. b3 {[%clk 0:02:59]} 4... b6 {[%clk 0:02:58.5]} 5. Bb2 {[%clk 0:02:59.2]} 5...
Bb7 {[%clk 0:02:59]} 6. Nc3 {[%clk 0:02:55.5]} 6... Nbd7 {[%clk 0:02:58.6]} 7.
d4 {[%clk 0:02:53.7]} 7... Bd6 {[%clk 0:02:52.6]} 8. Bd3 {[%clk 0:02:52.9]} 8...
Ne4 {[%clk 0:02:48.4]} 9. Qc2 {[%clk 0:02:38.8]} 9... f5 {[%clk 0:02:47.3]} 10.
cxd5 {[%clk 0:02:33.2]} 10... exd5 {[%clk 0:02:46.6]} 11. Nb5 {[%clk 0:02:32.4]}
11... Bb4+ {[%clk 0:02:46.1]} 12. Ke2 {[%clk 0:02:14.3]} 12... c6 {[%clk
0:02:45.6]} 13. a3 {[%clk 0:02:12.9]} 13... Be7 {[%clk 0:02:41.6]} 14. Nc3
{[%clk 0:02:12.1]} 14... Bd6 {[%clk 0:02:41.9]} 15. g3 {[%clk 0:01:57.2]} 15...
O-O {[%clk 0:02:39.2]} 16. h4 {[%clk 0:01:56]} 16... Qe7 {[%clk 0:02:36.9]} 17.
Kf1 {[%clk 0:01:54.6]} 17... a5 {[%clk 0:02:35.7]} 18. Kg2 {[%clk 0:01:49.6]}
18... Rae8 {[%clk 0:02:35.6]} 19. Ne2 {[%clk 0:01:44.5]} 19... Ndf6 {[%clk
0:02:18.4]} 20. Ng5 {[%clk 0:01:29.9]} 20... c5 {[%clk 0:02:03]} 21. Nf4 {[%clk
0:01:21.2]} 21... Ng4 {[%clk 0:01:54.9]} 22. Bxe4 {[%clk 0:01:06.1]} 22... fxe4
{[%clk 0:01:47.7]} 23. Rhf1 {[%clk 0:00:40.8]} 23... Rf5 {[%clk 0:01:40.1]} 24.
Rad1 {[%clk 0:00:33.4]} 24... h6 {[%clk 0:01:37.9]} 25. Ngh3 {[%clk 0:00:31.3]}
25... g5 {[%clk 0:01:35.5]} 26. hxg5 {[%clk 0:00:29.2]} 26... hxg5 {[%clk
0:01:35.4]} 27. dxc5 {[%clk 0:00:27]} 27... bxc5 {[%clk 0:01:33.7]} 28. Qc3
{[%clk 0:00:16.4]} 28... Be5 {[%clk 0:01:26.3]} 29. Ng6 {[%clk 0:00:16.7]} 29...
Bxc3 {[%clk 0:01:21.3]} 30. Nxe7+ {[%clk 0:00:16.3]} 30... Rxe7 {[%clk 0:01:22]}
31. Bxc3 {[%clk 0:00:17.1]} 31... d4 {[%clk 0:01:22.5]} 32. Bxa5 {[%clk
0:00:16.5]} 32... dxe3 {[%clk 0:01:22.4]} 33. Rde1 {[%clk 0:00:15]} 33... exf2
{[%clk 0:01:20.2]} 34. Nxf2 {[%clk 0:00:12.1]} 34... e3+ {[%clk 0:01:20.6]} 35.
Kg1 {[%clk 0:00:11.7]} 35... exf2+ {[%clk 0:01:19.9]} 36. Rxf2 {[%clk
0:00:12.6]} 36... Rxf2 {[%clk 0:01:12.7]} 37. Rxe7 {[%clk 0:00:12.2]} 37... Rg2+
{[%clk 0:01:12.2]} 38. Kf1 {[%clk 0:00:12.3]} 38... Bf3 {[%clk 0:01:08.8]} 39.
Bc3 {[%clk 0:00:10.5]} 39... Nh2+ {[%clk 0:01:04.9]} 40. Ke1 {[%clk 0:00:10.2]}
40... g4 {[%clk 0:01:04.1]} 41. b4 {[%clk 0:00:09.7]} 41... Rc2 {[%clk
0:01:02.1]} 42. Bd2 {[%clk 0:00:09.4]} 42... c4 {[%clk 0:01:00.8]} 43. Rc7
{[%clk 0:00:08.7]} 43... Be4 {[%clk 0:00:59]} 44. b5 {[%clk 0:00:08.8]} 44...
Nf3+ {[%clk 0:00:58.5]} 45. Ke2 {[%clk 0:00:09.4]} 45... Rxd2+ {[%clk
0:00:57.5]} 46. Ke3 {[%clk 0:00:09.8]} 46... Bd5 {[%clk 0:00:57.1]} 47. b6
{[%clk 0:00:10]} 47... Rb2 {[%clk 0:00:57.3]} 48. Rc5 {[%clk 0:00:08.6]} 48...
Be6 {[%clk 0:00:55.5]} 49. Rc6 {[%clk 0:00:08.9]} 49... Kf7 {[%clk 0:00:55]} 50.
Rc7+ {[%clk 0:00:08.9]} 50... Kf6 {[%clk 0:00:54.7]} 51. b7 {[%clk 0:00:09.8]}
51... c3 {[%clk 0:00:50.4]} 52. Rxc3 {[%clk 0:00:09.4]} 52... Rxb7 {[%clk
0:00:49.9]} 53. a4 {[%clk 0:00:09.5]} 53... Rb4 {[%clk 0:00:49.1]} 54. Ra3
{[%clk 0:00:09.7]} 54... Ne5 {[%clk 0:00:47.1]} 55. a5 {[%clk 0:00:09.7]} 55...
Nc4+ {[%clk 0:00:47.3]} 0-1

[Event "Late-Titled-Tuesday-Blitz-May-14-2024"]
[Site "Chess.com"]
[Date "2024.05.14"]
[Round "1"]
[White "egnfanclub"]
[Black "Puzzlebot_1294"]
[Result "1-0"]
[WhiteElo "2359"]
[BlackElo "2653"]
[TimeControl "180+1"]
[EndTime "14:07:16 PDT"]
[Termination "egnfanclub won by resignation"]

1. e4 {[%clk 0:02:59.8]} 1... e5 {[%clk 0:02:54.6]} 2. Nf3 {[%clk 0:02:59.3]}
2... Nc6 {[%clk 0:02:53.7]} 3. Nc3 {[%clk 0:02:57.8]} 3... Nf6 {[%clk
0:02:51.3]} 4. d4 {[%clk 0:02:57.8]} 4... exd4 {[%clk 0:02:52.2]} 5. Nd5 {[%clk
0:02:57.1]} 5... Nb4 {[%clk 0:02:28.7]} 6. Bc4 {[%clk 0:02:46.7]} 6... Nbxd5
{[%clk 0:01:25.7]} 7. exd5 {[%clk 0:02:44.7]} 7... Be7 {[%clk 0:01:23.7]} 8.
Qxd4 {[%clk 0:02:39.7]} 8... d6 {[%clk 0:01:21.7]} 9. Bg5 {[%clk 0:02:26.5]}
9... O-O {[%clk 0:01:20.3]} 10. O-O-O {[%clk 0:02:23.8]} 10... h6 {[%clk
0:01:19.1]} 11. h4 {[%clk 0:02:23]} 11... Bf5 {[%clk 0:00:52.2]} 12. Qf4 {[%clk
0:02:16]} 12... Bg6 {[%clk 0:00:46.5]} 13. g4 {[%clk 0:01:43.1]} 13... hxg5
{[%clk 0:00:39.1]} 14. hxg5 {[%clk 0:01:40.1]} 14... Nh7 {[%clk 0:00:39]} 15.
Kb1 {[%clk 0:01:20.1]} 15... Bxg5 {[%clk 0:00:36.9]} 16. Qh2 {[%clk 0:01:15.8]}
16... Qf6 {[%clk 0:00:35.8]} 17. Nxg5 {[%clk 0:01:14.9]} 17... Qxg5 {[%clk
0:00:35.2]} 18. Bd3 {[%clk 0:01:15.2]} 18... Rfe8 {[%clk 0:00:26.4]} 19. f4
{[%clk 0:01:15.1]} 19... Qf6 {[%clk 0:00:21.1]} 20. f5 {[%clk 0:01:10]} 20...
Kf8 {[%clk 0:00:14.5]} 21. fxg6 {[%clk 0:01:09.3]} 21... Ng5 {[%clk 0:00:15]}
22. Rdf1 {[%clk 0:00:58.6]} 22... Qe5 {[%clk 0:00:14.6]} 23. Qf2 {[%clk
0:00:50.1]} 23... Qxd5 {[%clk 0:00:06.2]} 24. gxf7 {[%clk 0:00:46.8]} 24... Red8
{[%clk 0:00:05.3]} 25. Rh8+ {[%clk 0:00:42.2]} 25... Ke7 {[%clk 0:00:03.9]} 26.
f8=Q+ {[%clk 0:00:40.6]} 26... Rxf8 {[%clk 0:00:03.8]} 27. Rxf8 {[%clk
0:00:41.4]} 27... Rxf8 {[%clk 0:00:03.4]} 28. Qxf8+ {[%clk 0:00:41.6]} 28... Kd7
{[%clk 0:00:03.5]} 29. Re1 {[%clk 0:00:32.6]} 29... Kc6 {[%clk 0:00:02.3]} 30.
Qxg7 {[%clk 0:00:25.6]} 30... Kb6 {[%clk 0:00:02.4]} 31. Qc3 {[%clk 0:00:24.4]}
31... c5 {[%clk 0:00:02.5]} 32. Qb3+ {[%clk 0:00:23.8]} 32... Qxb3 {[%clk
0:00:02.8]} 33. axb3 {[%clk 0:00:24.7]} 33... Nf3 {[%clk 0:00:02.8]} 34. Re6
{[%clk 0:00:22.7]} 34... Kc6 {[%clk 0:00:03.2]} 35. Rf6 {[%clk 0:00:21.7]} 35...
Ne5 {[%clk 0:00:02.6]} 36. Be4+ {[%clk 0:00:20.6]} 36... Kd7 {[%clk 0:00:02.9]}
37. g5 {[%clk 0:00:21]} 37... Ke7 {[%clk 0:00:03.8]} 38. Rh6 {[%clk 0:00:20.6]}
38... b6 {[%clk 0:00:03.4]} 39. Rh7+ {[%clk 0:00:19.3]} 39... Nf7 {[%clk
0:00:03.4]} 40. g6 {[%clk 0:00:19.4]} 1-0

[Event "Late-Titled-Tuesday-Blitz-May-14-2024"]
[Site "Chess.com"]
[Date "2024.05.14"]
[Round "1"]
[White "Boninknights"]
[Black "Mischuk_D"]
[Result "1-0"]
[WhiteElo "2392"]
[BlackElo "2690"]
[TimeControl "180+1"]
[EndTime "14:07:21 PDT"]
[Termination "Boninknights won by resignation"]

1. d4 {[%clk 0:02:57.3]} 1... d5 {[%clk 0:03:00]} 2. Nf3 {[%clk 0:02:57.1]} 2...
e6 {[%clk 0:02:59.1]} 3. c4 {[%clk 0:02:56.4]} 3... c6 {[%clk 0:02:57.8]} 4. Qc2
{[%clk 0:02:53]} 4... dxc4 {[%clk 0:02:56.2]} 5. Qxc4 {[%clk 0:02:51.9]} 5...
Nf6 {[%clk 0:02:56]} 6. Nbd2 {[%clk 0:02:49.5]} 6... b5 {[%clk 0:02:55.1]} 7.
Qc2 {[%clk 0:02:48.3]} 7... Bb7 {[%clk 0:02:55.5]} 8. e4 {[%clk 0:02:47.4]} 8...
a6 {[%clk 0:02:52.4]} 9. e5 {[%clk 0:02:45.9]} 9... Nd5 {[%clk 0:02:52]} 10. a3
{[%clk 0:02:44.6]} 10... Nd7 {[%clk 0:02:51.6]} 11. Ne4 {[%clk 0:02:42.7]} 11...
Qc7 {[%clk 0:02:36]} 12. b4 {[%clk 0:02:40.9]} 12... a5 {[%clk 0:02:35.8]} 13.
bxa5 {[%clk 0:02:36.6]} 13... Qxa5+ {[%clk 0:02:32]} 14. Bd2 {[%clk 0:02:31.9]}
14... Qa4 {[%clk 0:02:27.8]} 15. Qxa4 {[%clk 0:02:25.4]} 15... Rxa4 {[%clk
0:02:28.7]} 16. Nd6+ {[%clk 0:02:15.3]} 16... Bxd6 {[%clk 0:02:27.9]} 17. exd6
{[%clk 0:02:15.1]} 17... f6 {[%clk 0:02:27.6]} 18. Bd3 {[%clk 0:02:10]} 18...
Kf7 {[%clk 0:02:17.5]} 19. Bc2 {[%clk 0:02:07.5]} 19... Ra7 {[%clk 0:02:16.6]}
20. Ke2 {[%clk 0:02:03]} 20... Rha8 {[%clk 0:02:16.5]} 21. h4 {[%clk 0:01:45.4]}
21... h6 {[%clk 0:02:14.4]} 22. h5 {[%clk 0:01:39.8]} 22... Rxa3 {[%clk
0:02:12.3]} 23. Bg6+ {[%clk 0:01:38.6]} 23... Kg8 {[%clk 0:02:12.1]} 24. Rxa3
{[%clk 0:01:37.8]} 24... Rxa3 {[%clk 0:02:11.6]} 25. Rc1 {[%clk 0:01:34.6]}
25... Ra8 {[%clk 0:01:57.9]} 26. Ne1 {[%clk 0:01:28.1]} 26... b4 {[%clk
0:01:50.6]} 27. Nd3 {[%clk 0:01:24.3]} 27... Ra2 {[%clk 0:01:41]} 28. Be8 {[%clk
0:01:16.1]} 28... Nc3+ {[%clk 0:01:14.5]} 29. Ke1 {[%clk 0:01:14]} 29... Ne4
{[%clk 0:00:48.9]} 30. Bxb4 {[%clk 0:01:09.8]} 30... Nb6 {[%clk 0:00:40.8]} 31.
d7 {[%clk 0:01:03.1]} 31... Ra8 {[%clk 0:00:41.4]} 32. Nc5 {[%clk 0:00:55.7]}
32... Nd6 {[%clk 0:00:37.3]} 33. Nxb7 {[%clk 0:00:53]} 33... Nxb7 {[%clk
0:00:37.4]} 34. Rxc6 {[%clk 0:00:52.1]} 34... Nxd7 {[%clk 0:00:33.7]} 35. Bxd7
{[%clk 0:00:50.4]} 35... Nd8 {[%clk 0:00:32.4]} 36. Bxe6+ {[%clk 0:00:47.8]}
36... Nxe6 {[%clk 0:00:29.9]} 37. Rxe6 {[%clk 0:00:47]} 37... Ra1+ {[%clk
0:00:29.7]} 38. Ke2 {[%clk 0:00:46.1]} 38... Rh1 {[%clk 0:00:30.6]} 39. d5
{[%clk 0:00:43.1]} 39... Rxh5 {[%clk 0:00:30.6]} 40. d6 {[%clk 0:00:42.8]} 40...
Rd5 {[%clk 0:00:30.8]} 41. Re3 {[%clk 0:00:39.9]} 41... Kf7 {[%clk 0:00:30.4]}
42. Re7+ {[%clk 0:00:37]} 42... Kg6 {[%clk 0:00:30.1]} 43. d7 {[%clk 0:00:37]}
43... f5 {[%clk 0:00:13.7]} 44. Ba5 {[%clk 0:00:36.4]} 44... Rxa5 {[%clk
0:00:12.1]} 45. d8=Q {[%clk 0:00:35.6]} 45... Ra6 {[%clk 0:00:10.9]} 46. Qf8
{[%clk 0:00:31.7]} 46... Rf6 {[%clk 0:00:10.6]} 47. Qxg7+ {[%clk 0:00:30.8]} 1-0

[Event "Late-Titled-Tuesday-Blitz-May-14-2024"]
[Site "Chess.com"]
[Date "2024.05.14"]
[Round "1"]
[White "Seochesspie"]
[Black "Slovak_fighter2000"]
[Result "1/2-1/2"]
[WhiteElo "2835"]
[BlackElo "2473"]
[TimeControl "180+1"]
[EndTime "14:07:22 PDT"]
[Termination "Game drawn by repetition"]

1. c4 {[%clk 0:03:00.9]} 1... e5 {[%clk 0:02:59.7]} 2. Nc3 {[%clk 0:03:00.7]}
2... Nf6 {[%clk 0:02:59.5]} 3. Nf3 {[%clk 0:03:00.9]} 3... Nc6 {[%clk
0:02:59.7]} 4. g3 {[%clk 0:02:59.9]} 4... Bc5 {[%clk 0:02:58.3]} 5. Bg2 {[%clk
0:02:57.6]} 5... d6 {[%clk 0:02:58.5]} 6. O-O {[%clk 0:02:55.9]} 6... O-O {[%clk
0:02:58.4]} 7. Na4 {[%clk 0:02:55.4]} 7... Bb6 {[%clk 0:02:58]} 8. d3 {[%clk
0:02:54.2]} 8... Bg4 {[%clk 0:02:40.9]} 9. h3 {[%clk 0:02:52.2]} 9... Bh5 {[%clk
0:02:38.8]} 10. g4 {[%clk 0:02:39.4]} 10... Bg6 {[%clk 0:02:38.9]} 11. Nxb6
{[%clk 0:02:39.5]} 11... axb6 {[%clk 0:02:39]} 12. Nh4 {[%clk 0:02:38.2]} 12...
Nd7 {[%clk 0:02:30.3]} 13. Nxg6 {[%clk 0:02:37.7]} 13... hxg6 {[%clk 0:02:31.2]}
14. Bd2 {[%clk 0:02:34.7]} 14... Qh4 {[%clk 0:02:27.7]} 15. b4 {[%clk
0:02:33.9]} 15... f5 {[%clk 0:02:20.7]} 16. b5 {[%clk 0:02:28.9]} 16... Nd8
{[%clk 0:02:20.7]} 17. e3 {[%clk 0:02:28.8]} 17... Nf6 {[%clk 0:02:13.1]} 18.
gxf5 {[%clk 0:02:25.9]} 18... gxf5 {[%clk 0:02:14]} 19. Qf3 {[%clk 0:02:25.1]}
19... Nh7 {[%clk 0:02:00.2]} 20. a4 {[%clk 0:02:21.6]} 20... Ng5 {[%clk
0:01:57]} 21. Qg3 {[%clk 0:02:21.5]} 21... Qxg3 {[%clk 0:01:56.8]} 22. fxg3
{[%clk 0:02:21.6]} 22... Nge6 {[%clk 0:01:54.8]} 23. a5 {[%clk 0:02:13.3]} 23...
bxa5 {[%clk 0:01:34.6]} 24. Bxa5 {[%clk 0:02:13]} 24... Rf7 {[%clk 0:01:19.3]}
25. Bd5 {[%clk 0:02:11.8]} 25... Kh7 {[%clk 0:01:09.1]} 26. Bb4 {[%clk 0:02:08]}
26... Rxa1 {[%clk 0:01:00.9]} 27. Rxa1 {[%clk 0:02:07]} 27... c6 {[%clk
0:00:57.9]} 28. Bg2 {[%clk 0:02:04.9]} 28... f4 {[%clk 0:00:39.1]} 29. exf4
{[%clk 0:02:02.7]} 29... exf4 {[%clk 0:00:40]} 30. Bxd6 {[%clk 0:02:02.3]} 30...
Rd7 {[%clk 0:00:36.2]} 31. c5 {[%clk 0:01:53.7]} 31... fxg3 {[%clk 0:00:30]} 32.
bxc6 {[%clk 0:01:42.5]} 32... Nxc6 {[%clk 0:00:26.6]} 33. Bxc6 {[%clk
0:01:39.4]} 33... bxc6 {[%clk 0:00:26.6]} 34. Kg2 {[%clk 0:01:39.2]} 34... Nd4
{[%clk 0:00:19.8]} 35. Ra6 {[%clk 0:01:34.3]} 35... Rb7 {[%clk 0:00:17.1]} 36.
Kxg3 {[%clk 0:01:31.6]} 36... Rb3 {[%clk 0:00:17]} 37. Be5 {[%clk 0:01:23.4]}
37... Rxd3+ {[%clk 0:00:16.2]} 38. Kg4 {[%clk 0:01:23.8]} 38... Nf3 {[%clk
0:00:14.1]} 39. Bf4 {[%clk 0:01:21.9]} 39... Nd4 {[%clk 0:00:13.5]} 40. Bd6
{[%clk 0:01:16.7]} 40... Rc3 {[%clk 0:00:10.8]} 41. h4 {[%clk 0:01:11.9]} 41...
Rc4 {[%clk 0:00:10.6]} 42. Kh3 {[%clk 0:01:03.4]} 42... Rc3+ {[%clk 0:00:11.2]}
43. Kg2 {[%clk 0:01:03]} 43... Nf5 {[%clk 0:00:08.5]} 44. Rxc6 {[%clk
0:00:53.7]} 44... Nxd6 {[%clk 0:00:08.3]} 45. Rxd6 {[%clk 0:00:53.1]} 45... Rxc5
{[%clk 0:00:08.7]} 46. Kg3 {[%clk 0:00:51.3]} 46... Rh5 {[%clk 0:00:08.9]} 47.
Kg4 {[%clk 0:00:51.1]} 47... Ra5 {[%clk 0:00:09.1]} 48. h5 {[%clk 0:00:50.6]}
48... Ra4+ {[%clk 0:00:08.8]} 49. Kg5 {[%clk 0:00:50.9]} 49... Ra5+ {[%clk
0:00:09.4]} 50. Kh4 {[%clk 0:00:51.4]} 50... Ra4+ {[%clk 0:00:10]} 51. Kg3
{[%clk 0:00:51.7]} 51... Ra3+ {[%clk 0:00:09.9]} 52. Kg4 {[%clk 0:00:52]} 52...
Ra4+ {[%clk 0:00:10.3]} 53. Kg3 {[%clk 0:00:51.1]} 53... Ra5 {[%clk 0:00:10.1]}
54. Kh4 {[%clk 0:00:50.4]} 54... Ra4+ {[%clk 0:00:10.5]} 55. Kg3 {[%clk
0:00:50.4]} 1/2-1/2

[Event "Late-Titled-Tuesday-Blitz-May-14-2024"]
[Site "Chess.com"]
[Date "2024.05.14"]
[Round "1"]
[White "SharathRk6"]
[Black "MyDream003"]
[Result "0-1"]
[WhiteElo "2476"]
[BlackElo "2855"]
[TimeControl "180+1"]
[EndTime "14:07:23 PDT"]
[Termination "MyDream003 won by resignation"]

1. e4 {[%clk 0:03:00.9]} 1... c6 {[%clk 0:02:58.2]} 2. d4 {[%clk 0:03:00.6]}
2... d5 {[%clk 0:02:58.8]} 3. Nc3 {[%clk 0:03:01.3]} 3... dxe4 {[%clk 0:02:59]}
4. Nxe4 {[%clk 0:03:02.2]} 4... Nf6 {[%clk 0:02:59.3]} 5. Nxf6+ {[%clk
0:03:02.4]} 5... exf6 {[%clk 0:03:00.2]} 6. c3 {[%clk 0:03:03.1]} 6... Bd6
{[%clk 0:03:00.5]} 7. Bd3 {[%clk 0:03:03.6]} 7... O-O {[%clk 0:03:00.8]} 8. Qc2
{[%clk 0:03:04.3]} 8... Re8+ {[%clk 0:03:01]} 9. Ne2 {[%clk 0:03:05]} 9... h5
{[%clk 0:03:01.3]} 10. O-O {[%clk 0:03:05.7]} 10... Nd7 {[%clk 0:03:01.7]} 11.
Bd2 {[%clk 0:03:05.3]} 11... Nf8 {[%clk 0:03:01.8]} 12. c4 {[%clk 0:03:05.7]}
12... h4 {[%clk 0:02:52]} 13. h3 {[%clk 0:03:05.5]} 13... Bc7 {[%clk 0:02:50.8]}
14. Rad1 {[%clk 0:02:54.7]} 14... Be6 {[%clk 0:02:39.7]} 15. f4 {[%clk
0:02:52.8]} 15... Bd7 {[%clk 0:02:33]} 16. f5 {[%clk 0:02:48.4]} 16... Nh7
{[%clk 0:02:23.5]} 17. Nc3 {[%clk 0:02:32.7]} 17... Ng5 {[%clk 0:02:21.2]} 18.
Bxg5 {[%clk 0:02:30.5]} 18... fxg5 {[%clk 0:02:21.1]} 19. f6 {[%clk 0:02:28.2]}
19... Be6 {[%clk 0:02:00.6]} 20. d5 {[%clk 0:02:14.4]} 20... Qd6 {[%clk
0:01:46.9]} 21. dxe6 {[%clk 0:01:21.2]} 21... Qh2+ {[%clk 0:01:42.7]} 22. Kf2
{[%clk 0:01:21.1]} 22... Bb6+ {[%clk 0:01:43.6]} 23. Ke1 {[%clk 0:01:11.7]}
23... Rxe6+ {[%clk 0:01:31.3]} 24. Ne2 {[%clk 0:01:09.5]} 24... Rae8 {[%clk
0:00:53.2]} 25. Bh7+ {[%clk 0:00:53]} 25... Kh8 {[%clk 0:00:52.9]} 26. fxg7+
{[%clk 0:00:43.8]} 26... Kxg7 {[%clk 0:00:53.8]} 27. Qc3+ {[%clk 0:00:43.4]}
27... Re5 {[%clk 0:00:25.3]} 28. Kd2 {[%clk 0:00:13.5]} 28... Qxg2 {[%clk
0:00:17.7]} 29. Bd3 {[%clk 0:00:12.7]} 29... Qxh3 {[%clk 0:00:08]} 30. Rxf7+
{[%clk 0:00:09.8]} 30... Kxf7 {[%clk 0:00:07.3]} 31. Bg6+ {[%clk 0:00:10.3]}
31... Kxg6 {[%clk 0:00:07.9]} 32. Qxh3 {[%clk 0:00:11]} 32... Rxe2+ {[%clk
0:00:08.4]} 33. Kc1 {[%clk 0:00:11.7]} 33... R8e6 {[%clk 0:00:07.1]} 34. a3
{[%clk 0:00:07.1]} 34... R2e3 {[%clk 0:00:06.5]} 35. Kb1 {[%clk 0:00:07.7]}
35... Rxh3 {[%clk 0:00:06.6]} 0-1